bitfinex/quotes_BTCUSD_20241001
["timestamp","ask_amount","ask_price","bid_price","bid_amount"]
[1727798372234,0.3156978,62798.0,62797.0,0.000822]
[1727798373187,0.55445436,62798.0,62797.0,0.000822]
[1727798373445,0.57214458,62798.0,62797.0,0.000822]
[1727798373693,0.64734458,62798.0,62797.0,0.000822]
[1727798374309,0.6723089,62798.0,62797.0,0.000822]
[1727798374465,0.6723089,62798.0,62797.0,0.014822]
[1727798376627,0.6953089,62798.0,62797.0,0.014822]
[1727798376856,0.259271,62786.0,62785.0,0.000822]
[1727798377062,0.81131836,62786.0,62785.0,0.000822]
[1727798377683,0.83628608,62786.0,62785.0,0.000822]
[1727798378769,0.83728608,62786.0,62785.0,0.028822]
[1727798379146,0.83728608,62786.0,62785.0,0.014822]
[1727798379746,0.83728608,62786.0,62785.0,0.028822]
[1727798379947,0.81131836,62786.0,62785.0,0.014822]
[1727798380423,0.81231836,62786.0,62785.0,0.028822]
[1727798380818,0.4990288,62786.0,62785.0,0.028822]
[1727798381262,0.4990288,62786.0,62785.0,0.014822]
[1727798381532,0.5000288,62786.0,62785.0,0.016822]
[1727798381741,0.3990288,62786.0,62785.0,0.014822]
[1727798381986,1.0175087,62786.0,62785.0,0.014822]
[1727798382191,0.77975214,62786.0,62785.0,0.016822]
[1727798383005,0.80271938,62786.0,62785.0,0.000822]
[1727798383576,0.80371938,62786.0,62785.0,0.014822]
[1727798383985,0.77875214,62786.0,62785.0,0.014822]
[1727798385055,0.77975214,62786.0,62785.0,0.028822]
[1727798387141,0.80471947,62786.0,62785.0,0.028822]
[1727798390240,0.77975214,62786.0,62785.0,0.028822]
[1727798392118,0.77875214,62786.0,62785.0,0.014822]
[1727798392758,0.77975214,62786.0,62785.0,0.028822]
[1727798394269,1.1185087,62786.0,62785.0,0.028822]
[1727798394472,0.87975214,62786.0,62785.0,0.028822]
[1727798395137,0.87975214,62786.0,62785.0,0.014822]
[1727798395350,0.88255214,62786.0,62785.0,0.014822]
[1727798396196,0.88155214,62786.0,62785.0,0.000822]
[1727798396407,0.159291,62778.0,62777.0,0.000822]
[1727798396701,0.53902536,62778.0,62777.0,0.000822]
[1727798396928,0.61432536,62778.0,62777.0,0.000822]
[1727798397620,0.71432536,62778.0,62777.0,0.000822]
[1727798397837,0.71812536,62778.0,62777.0,0.000822]
[1727798398089,0.8834721,62778.0,62777.0,0.000822]
[1727798398573,0.159327,62764.0,62763.0,0.001642]
[1727798398802,0.53906136,62764.0,62763.0,0.001642]
[1727798399046,0.74256136,62764.0,62763.0,0.001642]
[1727798399303,0.87100814,62764.0,62763.0,0.001642]
[1727798401163,0.88880814,62764.0,62763.0,0.001642]
[1727798401407,0.91180814,62764.0,62763.0,0.001642]
[1727798401639,0.92480814,62764.0,62763.0,0.002642]
[1727798401851,0.91080814,62764.0,62763.0,0.002642]
[1727798402105,0.91180814,62764.0,62763.0,0.001642]
[1727798402574,0.91080814,62764.0,62763.0,0.002642]
[1727798403456,0.92480814,62764.0,62763.0,0.002642]
[1727798403897,1.17210585,62764.0,62763.0,0.002642]
[1727798404118,0.48261556,62759.0,62752.0,0.001644]
[1727798404350,0.81852014,62759.0,62752.0,0.001644]
[1727798405439,0.91082014,62759.0,62758.0,1e-06]
[1727798406081,0.92382014,62759.0,62758.0,1e-06]
[1727798406298,0.70054358,62759.0,62758.0,1e-06]
[1727798406535,0.74545843,62759.0,62758.0,1e-06]
[1727798406766,0.282354,62753.0,62752.0,0.001644]
[1727798406985,0.53090832,62753.0,62752.0,0.001644]
[1727798407442,0.01158043,62753.0,62734.0,0.000821]
[1727798407661,0.159393,62738.0,62735.0,0.002]
[1727798407879,0.3158508,62738.0,62735.0,0.002]
[1727798408114,0.159393,62738.0,62735.0,0.0058]
[1727798408323,0.159393,62738.0,62735.0,0.0038]
[1727798408553,0.159393,62738.0,62734.0,0.002821]
[1727798408773,0.159393,62738.0,62736.0,0.0012]
[1727798408977,0.159393,62738.0,62737.0,0.0160612]
[1727798409200,0.159393,62738.0,62737.0,0.0948612]
[1727798409410,0.159393,62738.0,62737.0,0.0862112]
[1727798409618,0.2072105,62738.0,62737.0,0.0074112]
[1727798409818,0.19824535,62738.0,62737.0,0.0064112]
[1727798410041,0.2232281,62738.0,62737.0,0.0064112]
[1727798410247,0.3936859,62738.0,62737.0,0.0064112]
[1727798410888,0.54205856,62739.0,62737.0,0.0029112]
[1727798411092,0.16426384,62738.0,62737.0,0.0039112]
[1727798411294,0.17001186,62738.0,62737.0,0.0039112]
[1727798412340,0.67785961,62738.0,62737.0,0.0039112]
[1727798412604,0.32646966,62738.0,62737.0,0.0039112]
[1727798413469,0.34046966,62738.0,62737.0,0.0039112]
[1727798413706,0.31548681,62738.0,62737.0,0.0039112]
[1727798416830,0.3404704,62738.0,62737.0,0.0039112]
[1727798417242,0.57922696,62738.0,62737.0,0.0039112]
[1727798417451,0.49691718,62738.0,62737.0,0.0039112]
[1727798417674,0.3404704,62738.0,62737.0,0.0039112]
[1727798418361,0.57922696,62738.0,62737.0,0.0039112]
[1727798418591,0.3404704,62738.0,62737.0,0.0039112]
[1727798418822,0.41548681,62738.0,62737.0,0.0039112]
[1727798419280,0.65424337,62738.0,62737.0,0.0039112]
[1727798419530,0.259408,62732.0,62731.0,0.0001]
[1727798419737,0.1,62731.0,62722.0,0.24027604]
[1727798419955,0.1,62731.0,62721.0,0.0004]
[1727798419956,0.259433,62722.0,62721.0,0.0004]
[1727798420175,0.41557201,62722.0,62721.0,0.0004]
[1727798420374,0.63884857,62722.0,62721.0,0.0004]
[1727798420819,0.63884857,62722.0,62701.0,1.0004]
[1727798420820,0.0038,62721.0,62707.0,0.23875656]
[1727798421040,0.22327656,62708.0,62700.0,0.23875656]
[1727798421301,0.22327656,62708.0,62685.0,0.01237954]
[1727798421302,0.24560422,62708.0,62691.0,0.23875656]
[1727798421555,0.159488,62701.0,62695.0,0.159501]
[1727798421758,0.318965,62703.0,62687.0,0.319041]
[1727798421759,0.318964,62703.0,62687.0,0.319041]
[1727798421996,0.22327656,62700.0,62695.0,0.1595]
[1727798422203,0.23875656,62701.0,62688.0,0.1564578]
[1727798422420,0.24715786,62700.0,62694.0,0.159503]
[1727798422669,0.159497,62697.0,62691.0,0.15951]
[1727798422904,0.22327656,62695.0,62682.0,0.04678822]
[1727798423160,0.01684236,62694.0,62683.0,0.1564578]
[1727798423429,0.01684236,62693.0,62689.0,0.159515]
[1727798423664,0.01684236,62692.0,62689.0,0.319032]
[1727798423883,0.01684236,62691.0,62686.0,0.319048]
[1727798424083,0.01684236,62691.0,62683.0,0.1564578]
[1727798424084,0.01684236,62690.0,62689.0,0.159517]
[1727798424291,0.01697388,62690.0,62688.0,0.592937]
[1727798424528,0.23875656,62697.0,62691.0,0.159511]
[1727798424732,0.01697393,62696.0,62689.0,0.319034]
[1727798424966,0.02499865,62694.0,62693.0,0.38278356]
[1727798425203,0.01697393,62694.0,62693.0,0.159507]
[1727798425457,0.01697393,62694.0,62689.0,0.001]
[1727798425661,0.01697393,62693.0,62689.0,0.001]
[1727798425896,0.01697393,62692.0,62689.0,0.002]
[1727798426099,0.01697393,62691.0,62689.0,0.002]
[1727798426322,0.014,62693.0,62689.0,0.001]
[1727798426323,0.01697393,62690.0,62689.0,0.001]
[1727798426568,0.01667825,62690.0,62688.0,0.2739]
[1727798426799,0.03429628,62690.0,62688.0,0.2739]
[1727798427208,0.01667825,62689.0,62688.0,0.2739]
[1727798427457,0.02499945,62693.0,62688.0,0.2739]
[1727798427702,0.02499945,62693.0,62681.0,0.0004]
[1727798427703,0.23875656,62689.0,62681.0,0.0004]
[1727798427995,0.22327656,62687.0,62681.0,0.0004]
[1727798428235,0.17620325,62686.0,62681.0,0.0004]
[1727798428466,0.014,62690.0,62682.0,0.319069]
[1727798428467,0.01667825,62685.0,62682.0,0.319069]
[1727798428688,0.014,62690.0,62683.0,0.1]
[1727798428689,0.01667825,62684.0,62683.0,0.1]
[1727798428928,0.01667825,62688.0,62683.0,0.1]
[1727798429151,0.01667825,62687.0,62683.0,0.1]
[1727798429371,0.01667825,62686.0,62685.0,0.0771]
[1727798429601,0.23875656,62688.0,62685.0,0.0771]
[1727798429602,0.01667825,62687.0,62685.0,0.0771]
[1727798429847,0.23875656,62688.0,62685.0,0.0771]
[1727798430106,0.014,62689.0,62688.0,0.15952]
[1727798430345,0.014,62689.0,62688.0,0.1574578]
[1727798430564,0.0166703,62689.0,62688.0,0.6350168]
[1727798430804,0.22327656,62704.0,62688.0,0.1564578]
[1727798431048,0.22327656,62704.0,62692.0,0.159509]
[1727798431283,0.22327656,62704.0,62688.0,0.3159748]
[1727798431284,0.01666783,62697.0,62688.0,0.3159748]
[1727798431540,0.01666783,62696.0,62688.0,0.3159748]
[1727798431773,0.01666783,62696.0,62686.0,0.319049]
[1727798431774,0.01666783,62695.0,62686.0,0.159523]
[1727798432007,0.01666783,62694.0,62688.0,0.15952]
[1727798432234,0.014,62689.0,62688.0,0.16052]
[1727798432494,0.03066783,62689.0,62688.0,0.001]
[1727798432983,0.56991919,62689.0,62688.0,0.001]
[1727798433238,0.62684286,62689.0,62688.0,0.001]
[1727798433674,0.159535,62682.0,62675.0,0.0150612]
[1727798433891,0.01659958,62682.0,62675.0,0.0150612]
[1727798434111,0.04160342,62682.0,62675.0,0.0150612]
[1727798434353,0.20113842,62682.0,62675.0,0.0150612]
[1727798434565,0.30893972,62682.0,62675.0,0.0150612]
[1727798435008,0.14940472,62682.0,62675.0,0.0150612]
[1727798435236,0.30893972,62682.0,62675.0,0.0150612]
[1727798435452,0.30893972,62682.0,62681.0,0.0014]
[1727798435453,0.33693972,62682.0,62681.0,0.0014]
[1727798438875,0.06960342,62682.0,62681.0,0.0014]
[1727798439099,0.15947,62708.0,62697.0,0.159496]
[1727798439321,0.23875656,62712.0,62697.0,0.1842]
[1727798439322,0.23875656,62698.0,62697.0,0.1842]
[1727798439769,0.23875656,62698.0,62691.0,0.1815]
[1727798439993,0.23875656,62712.0,62697.0,0.1564578]
[1727798440291,0.23875656,62712.0,62691.0,0.1815]
[1727798440292,0.23875656,62705.0,62691.0,0.1815]
[1727798440523,0.39521436,62712.0,62699.0,0.318982]
[1727798440524,0.23875656,62712.0,62699.0,0.318982]
[1727798440752,0.23875656,62705.0,62699.0,0.318982]
[1727798440977,0.23875656,62712.0,62699.0,0.318982]
[1727798441221,0.22327656,62702.0,62693.0,0.159507]
[1727798441463,0.22327656,62702.0,62693.0,0.1]
[1727798441924,0.318962,62704.0,62683.0,0.0812]
[1727798441925,0.23875656,62696.0,62683.0,0.0812]
[1727798442146,0.22327656,62692.0,62684.0,0.23875656]
[1727798442390,0.22327656,62692.0,62684.0,0.319058]
[1727798442613,0.22327656,62696.0,62685.0,0.319055]
[1727798442837,0.22327656,62696.0,62693.0,0.001]
[1727798443052,0.23875656,62695.0,62690.0,0.159514]
[1727798443281,0.23875656,62693.0,62687.0,0.1]
[1727798443551,0.23875656,62693.0,62684.0,0.319058]
[1727798443552,0.22327656,62693.0,62684.0,0.319058]
[1727798443789,0.05015629,62695.0,62688.0,0.159519]
[1727798444029,0.05015629,62695.0,62686.0,0.319048]
[1727798444030,0.23875656,62694.0,62686.0,0.319048]
[1727798444306,0.23875656,62694.0,62686.0,0.159524]
[1727798444539,0.3265919,62700.0,62684.0,0.160529]
[1727798444540,0.001,62692.0,62684.0,0.160529]
[1727798444760,0.22327656,62688.0,62684.0,0.001]
[1727798444979,0.38278756,62692.0,62688.0,0.001]
[1727798445194,0.159517,62689.0,62688.0,0.001]
[1727798445430,0.159521,62688.0,62681.0,0.0004]
[1727798445670,0.02500267,62691.0,62687.0,0.000823]
[1727798445912,0.1,62712.0,62688.0,0.1564578]
[1727798445913,0.23875656,62694.0,62688.0,0.1564578]
[1727798446122,0.23875656,62694.0,62688.0,0.3159758]
[1727798446346,0.23875656,62694.0,62688.0,0.1564578]
[1727798447238,0.23875656,62694.0,62687.0,0.195223]
[1727798447509,0.04535771,62694.0,62687.0,0.000823]
[1727798448023,0.001,62689.0,62688.0,0.16052]
[1727798448239,0.001,62689.0,62687.0,0.000823]
[1727798448240,0.013,62688.0,62687.0,0.000823]
[1727798448687,0.013,62688.0,62687.0,0.001823]
[1727798448962,0.22327656,62691.0,62687.0,0.000823]
[1727798449213,0.02499994,62690.0,62687.0,0.001823]
[1727798449467,0.001,62689.0,62688.0,0.001]
[1727798449953,0.18451594,62690.0,62687.0,0.000823]
[1727798449954,0.02499994,62690.0,62687.0,0.000823]
[1727798450447,0.39827656,62688.0,62687.0,0.000823]
[1727798450661,0.48098289,62688.0,62687.0,0.000823]
[1727798451182,0.49765665,62688.0,62687.0,0.000823]
[1727798451434,0.49765665,62688.0,62687.0,0.001823]
[1727798451435,0.41247032,62688.0,62687.0,0.001823]
[1727798451649,0.41347032,62688.0,62687.0,0.002823]
[1727798451873,0.41247032,62688.0,62687.0,0.001823]
[1727798452106,0.40047032,62688.0,62687.0,0.001823]
[1727798452373,0.40043352,62688.0,62687.0,0.001823]
[1727798452616,0.41243352,62688.0,62687.0,0.001823]
[1727798452843,0.39679656,62688.0,62687.0,0.002823]
[1727798453055,0.17717237,62688.0,62687.0,0.001823]
[1727798453278,0.47808911,62688.0,62687.0,0.001823]
[1727798453499,0.70136567,62688.0,62687.0,0.001823]
[1727798453730,0.6847133,62688.0,62687.0,0.001823]
[1727798454896,0.46143674,62688.0,62687.0,0.001823]
[1727798455141,0.46143674,62688.0,62681.0,0.0004]
[1727798455142,0.238135,62682.0,62681.0,0.0004]
[1727798455371,0.15955,62676.0,62675.0,0.0150612]
[1727798455585,0.55593663,62676.0,62675.0,0.0150612]
[1727798456351,0.77804092,62676.0,62675.0,0.0150612]
[1727798456593,0.55572958,62676.0,62675.0,0.0150612]
[1727798456823,0.71217636,62676.0,62675.0,0.0150612]
[1727798457235,0.55572958,62676.0,62675.0,0.0150612]
[1727798458121,0.55672958,62676.0,62675.0,0.0160612]
[1727798458397,0.55672958,62676.0,62675.0,0.0150612]
[1727798458398,0.01644522,62676.0,62675.0,0.0150612]
[1727798458904,0.03144522,62676.0,62675.0,0.0170612]
[1727798459155,0.03144522,62676.0,62675.0,0.173519]
[1727798459413,0.03144522,62676.0,62674.0,0.000823]
[1727798459649,0.03044522,62676.0,62674.0,0.000823]
[1727798459876,0.014,62676.0,62674.0,0.000823]
[1727798460120,0.01541847,62675.0,62674.0,0.160377]
[1727798460368,0.01541847,62675.0,62674.0,0.000823]
[1727798460613,0.001,62676.0,62674.0,0.160378]
[1727798460614,0.015,62676.0,62674.0,0.160378]
[1727798461099,0.015,62676.0,62675.0,0.159553]
[1727798461834,0.014,62676.0,62675.0,0.159553]
[1727798462086,0.014,62676.0,62674.0,0.000823]
[1727798462087,0.23875656,62689.0,62683.0,0.159531]
[1727798462343,0.23875656,62689.0,62675.0,0.1564578]
[1727798462594,0.23875656,62689.0,62676.0,0.1564578]
[1727798463085,0.23875656,62689.0,62685.0,0.159526]
[1727798463318,0.23875656,62689.0,62677.0,0.1]
[1727798463579,0.161151,62694.0,62686.0,0.159524]
[1727798463841,0.161151,62694.0,62681.0,0.1]
[1727798463842,0.003,62689.0,62681.0,0.1]
[1727798464099,0.003,62689.0,62688.0,0.15952]
[1727798464366,0.015,62689.0,62688.0,0.15952]
[1727798464615,0.015,62689.0,62688.0,0.4159778]
[1727798465126,0.001646,62694.0,62693.0,0.58647503]
[1727798465378,0.001646,62694.0,62693.0,0.82293283]
[1727798466130,0.001646,62694.0,62693.0,1.04087283]
[1727798466607,0.001646,62694.0,62693.0,1.04187283]
[1727798466608,0.004646,62694.0,62693.0,1.04187283]
[1727798466850,0.001646,62694.0,62693.0,1.04087283]
[1727798467336,0.001646,62698.0,62697.0,0.196437]
[1727798467552,0.001646,62698.0,62697.0,0.4528948]
[1727798468053,0.23875656,62712.0,62697.0,0.4528948]
[1727798468054,0.23875656,62712.0,62711.0,0.259461]
[1727798468273,0.23875656,62712.0,62711.0,0.1]
[1727798468756,0.23875656,62712.0,62702.0,0.1]
[1727798468999,0.23875656,62712.0,62697.0,0.4275578]
[1727798469000,0.32696803,62707.0,62697.0,0.4275578]
[1727798469248,0.32696803,62707.0,62697.0,0.1564578]
[1727798469489,0.32696803,62707.0,62693.0,0.001]
[1727798469730,0.32696803,62707.0,62697.0,0.159495]
[1727798469985,0.32696803,62701.0,62686.0,0.1904]
[1727798470219,0.48646803,62696.0,62687.0,0.3159788]
[1727798470478,0.318964,62703.0,62693.0,0.001]
[1727798470479,0.161506,62694.0,62693.0,0.001]
[1727798470976,0.002,62694.0,62693.0,0.002]
[1727798471219,0.39049252,62704.0,62693.0,0.001]
[1727798471220,0.318971,62702.0,62693.0,0.001]
[1727798471466,0.23875656,62698.0,62693.0,0.001]
[1727798471718,0.36664868,62704.0,62693.0,0.001]
[1727798471719,0.001,62701.0,62693.0,0.001]
[1727798471966,0.001,62701.0,62694.0,0.1564578]
[1727798472195,0.23875656,62704.0,62700.0,0.478464]
[1727798472438,0.23875656,62704.0,62694.0,0.1564578]
[1727798472439,0.23875656,62704.0,62695.0,0.1]
[1727798472679,0.23875656,62712.0,62693.0,0.20539705]
[1727798472680,0.23875656,62712.0,62698.0,0.1]
[1727798472946,0.23875656,62705.0,62704.0,0.159478]
[1727798473205,0.23875656,62712.0,62707.0,0.159471]
[1727798473456,0.04768768,62708.0,62705.0,0.159476]
[1727798473693,0.04774744,62707.0,62703.0,0.1]
[1727798474203,0.04774744,62707.0,62698.0,0.001]
[1727798474204,0.159485,62702.0,62698.0,0.001]
[1727798474448,0.20723879,62702.0,62698.0,0.001]
[1727798474699,0.159488,62701.0,62698.0,0.001]
[1727798475195,0.159492,62699.0,62698.0,0.001]
[1727798475682,0.159492,62699.0,62698.0,0.002]
[1727798475683,0.64291783,62699.0,62698.0,0.002]
[1727798475920,0.79678813,62699.0,62698.0,0.001]
[1727798476152,0.8444117,62699.0,62698.0,0.001]
[1727798476397,0.79548966,62699.0,62698.0,0.001]
[1727798476885,0.79548966,62699.0,62698.0,0.002]
[1727798477136,0.159545,62678.0,62677.0,0.23875656]
[1727798477640,0.15955,62676.0,62675.0,0.000823]
[1727798479415,0.319086,62679.0,62675.0,0.000823]
[1727798479662,0.159545,62678.0,62677.0,0.001]
[1727798480655,0.02500454,62680.0,62675.0,0.000823]
[1727798480898,0.159543,62679.0,62675.0,0.001823]
[1727798481148,0.159543,62679.0,62675.0,0.002823]
[1727798481149,0.15955,62676.0,62675.0,0.002823]
[1727798481374,0.16155,62676.0,62675.0,0.002823]
[1727798481629,0.16155,62676.0,62675.0,0.001823]
[1727798481630,0.15955,62676.0,62675.0,0.001823]
[1727798482108,0.15955,62676.0,62675.0,0.002823]
[1727798482362,0.15955,62676.0,62675.0,0.001823]
[1727798482620,0.48651803,62676.0,62675.0,0.001823]
[1727798482859,0.64197583,62676.0,62675.0,0.001823]
[1727798483586,0.64197583,62676.0,62675.0,0.000823]
[1727798483825,0.64197583,62676.0,62675.0,0.001823]
[1727798484061,0.64397583,62676.0,62675.0,0.002823]
[1727798484317,0.64397583,62676.0,62675.0,0.001823]
[1727798484318,0.66898529,62676.0,62675.0,0.001823]
[1727798484565,0.66698529,62676.0,62675.0,0.000823]
[1727798484810,0.82543207,62676.0,62675.0,0.001823]
[1727798485069,0.66898529,62676.0,62675.0,0.001823]
[1727798485312,0.66698529,62676.0,62675.0,0.000823]
[1727798485566,0.66898529,62676.0,62675.0,0.001823]
[1727798485789,0.66898529,62676.0,62675.0,0.002823]
[1727798485790,0.66998529,62676.0,62675.0,0.002823]
[1727798486023,0.18555946,62676.0,62675.0,0.001823]
[1727798486344,0.18555946,62676.0,62675.0,0.002823]
[1727798486345,0.51452749,62676.0,62675.0,0.002823]
[1727798486829,0.51252749,62676.0,62675.0,0.001823]
[1727798487553,0.51452749,62676.0,62675.0,0.002823]
[1727798487788,0.51252749,62676.0,62675.0,0.001823]
[1727798488031,0.51452749,62676.0,62675.0,0.002823]
[1727798488286,0.02900946,62676.0,62675.0,0.002823]
[1727798488780,0.18855946,62676.0,62675.0,0.002823]
[1727798489465,0.18655946,62676.0,62675.0,0.001823]
[1727798489690,0.18755946,62676.0,62675.0,0.002823]
[1727798489964,0.02600946,62676.0,62675.0,0.001823]
[1727798490189,0.65114022,62687.0,62676.0,0.3191]
[1727798490190,0.23875656,62687.0,62676.0,0.3191]
[1727798490408,0.003,62676.0,62675.0,0.162376]
[1727798490867,0.23875656,62687.0,62675.0,0.319926]
[1727798491096,0.16255,62676.0,62675.0,0.002823]
[1727798491592,0.16255,62676.0,62675.0,0.001823]
[1727798491593,0.16055,62676.0,62675.0,0.001823]
[1727798492539,0.16055,62676.0,62675.0,0.000823]
[1727798492540,0.15955,62676.0,62675.0,0.000823]
[1727798492993,0.15955,62676.0,62675.0,0.002823]
[1727798492994,0.16255,62676.0,62675.0,0.002823]
[1727798493216,0.16155,62676.0,62675.0,0.001823]
[1727798493446,0.31899678,62676.0,62675.0,0.002823]
[1727798493676,0.001,62676.0,62675.0,0.001823]
[1727798494187,0.003,62676.0,62675.0,0.002823]
[1727798494657,0.001,62676.0,62675.0,0.001823]
[1727798496037,0.001,62676.0,62675.0,0.161376]
[1727798496315,0.42495656,62694.0,62676.0,0.1]
[1727798496316,0.319025,62691.0,62676.0,0.1]
[1727798496583,0.319025,62691.0,62682.0,0.159535]
[1727798496584,0.15952,62688.0,62682.0,0.159535]
[1727798496807,0.159511,62692.0,62682.0,0.31907]
[1727798497078,0.23875656,62694.0,62691.0,0.15951]
[1727798497337,0.23875656,62694.0,62693.0,0.159507]
[1727798497591,0.23875656,62694.0,62690.0,0.159514]
[1727798497804,0.02500128,62696.0,62691.0,0.1564578]
[1727798498054,0.02500128,62696.0,62691.0,0.3159678]
[1727798498505,0.02500128,62696.0,62691.0,0.1564578]
[1727798499004,0.02500128,62696.0,62692.0,0.319019]
[1727798499254,0.02500128,62696.0,62692.0,0.319017]
[1727798499490,0.02500128,62696.0,62691.0,0.1564578]
[1727798499721,0.001,62694.0,62693.0,0.160507]
[1727798500416,0.02700128,62696.0,62693.0,0.159507]
[1727798500655,0.02700128,62696.0,62692.0,0.478526]
[1727798500656,0.02500128,62696.0,62692.0,0.478526]
[1727798500878,0.02500128,62696.0,62691.0,0.4754818]
[1727798501112,0.001646,62698.0,62695.0,0.159502]
[1727798501351,0.001646,62698.0,62692.0,0.319017]
[1727798501352,0.002,62694.0,62693.0,0.160507]
[1727798501579,0.002,62694.0,62693.0,0.4169648]
[1727798502995,0.001,62696.0,62694.0,0.159503]
[1727798503211,0.001,62696.0,62694.0,0.159504]
[1727798503487,0.003,62696.0,62693.0,0.2564578]
[1727798503720,0.159507,62693.0,62692.0,0.001]
[1727798504183,0.65399266,62694.0,62685.0,0.1]
[1727798504184,0.002,62694.0,62693.0,0.001]
[1727798504676,0.159508,62693.0,62688.0,0.1]
[1727798504936,0.161508,62693.0,62692.0,0.001]
[1727798505401,0.26649976,62693.0,62692.0,0.002]
[1727798505664,0.26549976,62693.0,62692.0,0.001]
[1727798505889,0.18650797,62693.0,62692.0,0.001]
[1727798506334,0.18650797,62693.0,62682.0,0.159533]
[1727798506335,0.15952,62688.0,62682.0,0.159533]
[1727798506573,0.02499997,62693.0,62682.0,0.159535]
[1727798506574,0.319031,62690.0,62682.0,0.159535]
[1727798506848,0.15952,62688.0,62682.0,0.159535]
[1727798507060,0.159519,62689.0,62683.0,0.159532]
[1727798507284,0.159523,62687.0,62680.0,0.1]
[1727798507544,0.002,62688.0,62684.0,0.159528]
[1727798507798,0.002,62688.0,62683.0,0.319065]
[1727798508040,0.159518,62689.0,62684.0,0.15953]
[1727798508269,0.159515,62690.0,62685.0,0.159526]
[1727798508498,0.003,62689.0,62684.0,0.31906]
[1727798508720,0.003,62689.0,62683.0,0.002]
[1727798508721,0.002,62689.0,62688.0,0.15952]
[1727798509712,0.23875656,62692.0,62686.0,0.319049]
[1727798509959,0.24040256,62698.0,62691.0,0.15951]
[1727798510195,0.24040256,62698.0,62692.0,0.319016]
[1727798510428,0.24040256,62698.0,62696.0,0.159498]
[1727798510664,0.24040256,62698.0,62692.0,0.1]
[1727798510879,0.24040256,62698.0,62692.0,0.319019]
[1727798510880,0.001646,62698.0,62692.0,0.319019]
[1727798511118,0.001646,62698.0,62694.0,0.159502]
[1727798511376,0.002646,62698.0,62692.0,0.320019]
[1727798511601,0.002646,62698.0,62695.0,0.159501]
[1727798511813,0.002646,62698.0,62697.0,0.159497]
[1727798511814,0.004646,62698.0,62697.0,0.159497]
[1727798512315,0.003646,62698.0,62696.0,0.001]
[1727798512548,0.003646,62698.0,62697.0,0.159497]
[1727798512801,0.004646,62698.0,62697.0,0.159497]
[1727798513272,0.002646,62698.0,62696.0,0.318999]
[1727798513493,0.004646,62698.0,62697.0,0.159497]
[1727798513736,0.004646,62698.0,62697.0,0.3159548]
[1727798513963,0.002646,62698.0,62694.0,0.001]
[1727798514182,0.002646,62698.0,62695.0,0.159501]
[1727798514183,0.001646,62698.0,62695.0,0.159501]
[1727798514426,0.003646,62698.0,62697.0,0.001]
[1727798514695,0.003646,62698.0,62697.0,0.002]
[1727798514696,0.004646,62698.0,62697.0,0.002]
[1727798514926,0.001646,62698.0,62688.0,0.1776]
[1727798515164,0.001646,62698.0,62691.0,0.1]
[1727798515391,0.001646,62698.0,62694.0,0.161503]
[1727798515392,0.24340256,62698.0,62694.0,0.161503]
[1727798515609,0.24340256,62698.0,62694.0,0.160503]
[1727798515610,0.24240256,62698.0,62694.0,0.160503]
[1727798516081,0.24340256,62698.0,62697.0,0.001]
[1727798516327,0.40289656,62698.0,62697.0,0.001]
[1727798516556,0.002646,62698.0,62697.0,0.001]
[1727798516769,0.16214,62698.0,62697.0,0.001]
[1727798516996,0.16214,62698.0,62697.0,0.002]
[1727798516997,0.16414,62698.0,62697.0,0.002]
[1727798517916,0.16314,62698.0,62697.0,0.001]
[1727798518416,0.16414,62698.0,62697.0,0.001]
[1727798518648,0.16314,62698.0,62697.0,0.001]
[1727798518871,0.16414,62698.0,62697.0,0.002]
[1727798520529,0.39124425,62698.0,62697.0,0.002]
[1727798521229,0.54770205,62698.0,62697.0,0.002]
[1727798521452,0.39124425,62698.0,62697.0,0.002]
[1727798521701,0.24314,62698.0,62697.0,0.001]
[1727798521916,0.159523,62687.0,62681.0,0.319073]
[1727798522137,0.159525,62686.0,62681.0,0.1]
[1727798522464,0.159525,62686.0,62676.0,0.000823]
[1727798522465,0.159548,62677.0,62676.0,0.000823]
[1727798522696,0.33498366,62684.0,62676.0,0.000823]
[1727798522697,0.159545,62678.0,62676.0,0.000823]
[1727798522961,0.33498366,62684.0,62676.0,0.000823]
[1727798523267,0.23875656,62683.0,62680.0,0.159539]
[1727798523671,0.23875656,62683.0,62678.0,0.319088]
[1727798523672,0.15415235,62698.0,62681.0,0.15789423]
[1727798523902,0.23875656,62690.0,62682.0,0.10193262]
[1727798524128,0.23875656,62690.0,62684.0,0.319059]
[1727798524362,0.23875656,62690.0,62686.0,0.319048]
[1727798524635,0.23875656,62697.0,62696.0,0.159499]
[1727798525136,0.001646,62698.0,62697.0,0.159497]
[1727798525354,0.001646,62698.0,62697.0,0.3159548]
[1727798526506,0.001646,62698.0,62696.0,0.160498]
[1727798526752,0.001646,62698.0,62697.0,0.159497]
[1727798527030,0.001646,62698.0,62696.0,0.001]
[1727798527293,0.39825356,62697.0,62696.0,0.001]
[1727798527534,0.159497,62697.0,62696.0,0.001]
[1727798528751,0.001646,62698.0,62683.0,0.23875656]
[1727798528752,0.319006,62695.0,62683.0,0.23875656]
[1727798528989,0.001646,62698.0,62682.0,0.319068]
[1727798528990,0.16214,62698.0,62697.0,0.001]
[1727798529482,0.319006,62695.0,62688.0,0.159518]
[1727798529734,0.159507,62693.0,62688.0,0.159518]
[1727798529955,0.159507,62693.0,62684.0,0.4755128]
[1727798529956,0.159518,62689.0,62684.0,0.4755128]
[1727798530188,0.319017,62693.0,62684.0,0.1564578]
[1727798530452,0.159512,62691.0,62687.0,0.159521]
[1727798530713,0.319017,62693.0,62686.0,0.319047]
[1727798530714,0.15951,62692.0,62686.0,0.319047]
[1727798530962,0.319006,62695.0,62689.0,0.159515]
[1727798531182,0.319006,62695.0,62687.0,0.319042]
[1727798531434,0.159508,62693.0,62687.0,0.319042]
[1727798531672,0.319006,62695.0,62689.0,0.159517]